fUST/lending_fUST_20251022
["ID","MTS","AMOUNT","RATE_DAILY","PERIOD"]
[392085142,1761140926975,639.19798106,0.00023499,2]
[392085143,1761140927009,639.19798106,0.00023499,2]
[392085144,1761140927040,639.19798106,0.00023499,2]
[392085145,1761140927068,639.19798106,0.00023499,2]
[392085146,1761140927096,639.19798106,0.00023499,2]
[392085147,1761140927123,639.19798106,0.00023499,2]
[392085148,1761140927150,639.19798106,0.00023499,2]
[392085149,1761140927176,639.19798106,0.00023499,2]
[392085150,1761140927204,639.19798106,0.00023499,2]
[392085151,1761140927230,412.0402841,0.00023499,2]
[392085152,1761140927252,227.15769696,0.00023499,2]
[392085153,1761140927278,639.19798106,0.00023499,2]
[392085154,1761140927308,639.19798106,0.00023499,2]
[392085155,1761140927335,639.19798106,0.00023499,2]
[392085156,1761140927362,639.19798106,0.00023499,2]
[392085157,1761140927394,639.19798106,0.00023499,2]
[392085158,1761140927425,639.19798106,0.00023499,2]
[392085159,1761140927460,639.19798106,0.00023499,2]
[392085160,1761140927492,639.19798106,0.00023499,2]
[392085161,1761140927517,639.19798106,0.00023499,2]
[392085162,1761140927545,639.19798106,0.00023499,2]
[392085163,1761140927571,639.19798106,0.00023499,2]
[392085164,1761140927597,639.19798106,0.00023499,2]
[392085165,1761140927623,639.19798106,0.00023499,2]
[392085166,1761140927650,639.19798106,0.00023499,2]
[392085167,1761140927724,639.19798106,0.00023499,2]
[392085168,1761140927752,184.88258714,0.00023499,2]
[392085169,1761140927936,-454.31539392,0.00023499,2]
[392085170,1761140927964,-639.19798106,0.00023499,2]
[392085171,1761140927997,-639.19798106,0.00023499,2]
[392085172,1761140928025,-639.19798106,0.00023499,2]
[392085173,1761140928053,-639.19798106,0.00023499,2]
[392085174,1761140928083,-639.19798106,0.00023499,2]
[392085175,1761140928109,639.19798106,0.00023499,2]
[392085176,1761140928193,639.19798106,0.00023499,2]
[392085177,1761140928266,639.19798106,0.00023499,2]
[392085178,1761140946896,500.0,0.00023499,2]
[392085179,1761140947226,500.0,0.00023499,2]
[392085180,1761140947623,500.0,0.00023499,2]
[392085182,1761140974331,159.0,9.7e-07,2]
[392085183,1761140974669,444.19960099,0.00023499,2]
[392085184,1761140975383,159.0,9.7e-07,2]
[392085185,1761140976436,159.0,9.7e-07,2]
[392085186,1761140977504,159.0,9.7e-07,2]
[392085187,1761140978568,159.0,9.7e-07,2]
[392085188,1761140979619,159.0,9.7e-07,2]
[392085189,1761140984820,1941.86916791,0.00023184,2]
[392085190,1761140985314,1941.86916791,0.00023389,2]
[392085191,1761140985627,1941.86916791,0.0002382,2]
[392085192,1761141018277,196.0,0.0001515,2]
[392085193,1761141018563,196.0,0.00016625,2]
[392085194,1761141018870,330.53559061,0.000181,2]
[392085228,1761141032190,-1200.0,0.00023998,2]
[392085229,1761141032201,-1941.86916791,0.00024093,2]
[392085231,1761141032211,-876.82039233,0.00024149,2]
[392085234,1761141032314,-323.17960767,0.00024149,2]
[392085235,1761141032326,-117.34218773,0.00024151,3]
[392085362,1761141037906,-82.65781227,0.00024151,3]
[392085364,1761141037916,-300.0,0.00024151,2]
[392085366,1761141037925,-300.0,0.00024151,2]
[392085368,1761141037934,-300.0,0.00024151,2]
[392085370,1761141037944,-300.0,0.00024151,2]
[392085372,1761141037952,-300.0,0.00024151,2]
[392085374,1761141037961,-4926.15674583,0.00024152,2]
[392085377,1761141037983,-5022.68721586,0.00024152,2]
[392085820,1761141043093,-8207.86822931,0.00024152,2]
[392085822,1761141043103,-1941.86916791,0.00024347,2]
[392085824,1761141043111,-1739.3558138,0.00024373,2]
[392085826,1761141043120,-425.13946924,0.00024373,2]
[392085828,1761141043129,-823.09,0.00024397,10]
[392085830,1761141043139,-500.0,0.00024406,2]
[392085831,1761141043147,-500.0,0.00024406,2]
[392085833,1761141043157,-500.0,0.00024406,2]
[392085835,1761141043166,-500.0,0.00024406,2]
[392085837,1761141043176,-643.33606535,0.00024406,2]
[392085839,1761141043185,-500.0,0.00024406,2]
[392085841,1761141043193,-500.0,0.00024406,2]
[392085843,1761141043203,-500.0,0.00024406,2]
[392085845,1761141043211,-500.0,0.00024406,2]
[392085846,1761141043220,-500.0,0.00024406,2]
[392085848,1761141043229,-500.0,0.00024406,2]
[392085850,1761141043239,-500.0,0.00024406,2]
[392085852,1761141043248,-500.0,0.00024406,2]
[392085854,1761141043257,-500.0,0.00024406,2]
[392085856,1761141043268,-500.0,0.00024406,2]
[392085857,1761141043277,-500.0,0.00024406,2]
[392085859,1761141043287,-500.0,0.00024406,2]
[392085861,1761141043295,-500.0,0.00024406,2]
[392085863,1761141043304,-500.0,0.00024406,2]
[392085865,1761141043313,-500.0,0.00024406,2]
[392085866,1761141043322,-500.0,0.00024406,2]
[392085868,1761141043331,-500.0,0.00024406,2]
[392085870,1761141043340,-500.0,0.00024406,2]
[392085872,1761141043349,-500.0,0.00024406,2]
[392085874,1761141043358,-11168.9072195,0.00024407,2]
[392085975,1761141101067,5000.0,0.00023853,2]
[392085976,1761141125664,5000.0,0.00023853,2]
[392085977,1761141149089,0.01,0.00023853,2]
[392085978,1761141149121,4999.99,0.00023853,2]
[392085979,1761141171701,5000.0,0.00023853,2]
[392085980,1761141195860,0.02,0.00023853,2]
[392085981,1761141195885,4999.98,0.00023853,2]
[392085982,1761141219513,5000.0,0.00023853,2]
[392085983,1761141242323,0.03,0.00023853,2]
[392085984,1761141242346,4999.97,0.00023853,2]
[392085985,1761141265749,5000.0,0.00023853,2]
[392085986,1761141273812,0.04,0.00023853,2]
[392085987,1761141273835,436.35767945,0.00023853,2]
[392085988,1761141282032,804.53887543,0.00023853,2]
[392085989,1761141289938,5000.0,0.00023853,2]
[392085990,1761141305278,174.82904481,0.00023853,2]
[392085991,1761141313200,3584.28440031,0.00023853,2]
[392085992,1761141313226,1415.71559969,0.00023853,2]
[392085993,1761141321299,4499.95564751,0.00023853,2]
[392085994,1761141329222,166.0,0.00023853,2]
[392085995,1761141337439,3918.3387528,0.00023853,2]
[392085996,1761141337470,1081.6612472,0.00023853,2]
[392085998,1761141360264,5000.0,0.00023853,2]
[392085999,1761141383633,3918.3487528,0.00023853,2]
[392086000,1761141383664,1081.6512472,0.00023853,2]
[392086001,1761141407345,5000.0,0.00023853,2]
[392086002,1761141430154,5000.0,0.00023889,2]
[392086003,1761141437987,172.47296786,0.00023889,2]
[392086004,1761141445155,434.24,0.00030137,120]
[392086005,1761141453787,4827.53703214,0.00023889,2]
[392086006,1761141453812,172.46296786,0.00023889,2]
[392086007,1761141476985,5000.0,0.00023889,2]
[392086008,1761141494548,196.0,0.0001515,2]
[392086009,1761141494972,390.26440613,0.000181,2]
[392086010,1761141499816,4241.28262601,0.00023889,2]
[392086011,1761141499841,758.71737399,0.00023889,2]
[392086012,1761141507661,502.90135768,0.00023889,2]
[392086013,1761141523058,5000.0,0.00023889,2]
[392086014,1761141543534,161.75915953,0.00023794,2]
[392086015,1761141545963,3576.6321088,0.00023889,2]
[392086016,1761141545989,1423.3678912,0.00023889,2]
[392086017,1761141568924,5000.0,0.00023889,2]
[392086018,1761141580520,240.3551693,0.00023274,2]
[392086019,1761141591456,3336.2869395,0.00023889,2]
[392086020,1761141591480,1663.7130605,0.00023889,2]
[392086021,1761141605056,200.0,0.00023889,2]
[392086022,1761141606988,1941.86916791,0.00023366,2]
[392086023,1761141607367,1941.86916791,0.00023583,2]
[392086024,1761141607732,1941.86916791,0.00023882,2]
[392086025,1761141614823,2310.68943577,0.00023889,2]
[392086026,1761141614848,2689.31056423,0.00023889,2]
[392086027,1761141615874,196.0,0.00016,2]
[392086028,1761141616313,196.0,0.0001635,2]
[392086029,1761141616626,196.0,0.000167,2]
[392086030,1761141616681,-859.75149822,0.00023889,2]
[392086031,1761141616952,196.0,0.0001705,2]
[392086032,1761141617330,196.0,0.000174,2]
[392086033,1761141617645,196.0,0.0001775,2]
[392086034,1761141617939,363.01876703,0.000181,2]
[392086035,1761141637551,5000.0,0.0002389,2]
[392086036,1761141660303,851.58828662,0.0002389,2]
[392086037,1761141731841,262.73,0.00023,14]
[392086038,1761141733632,159.0,9.7e-07,2]
[392086039,1761141734744,159.0,9.7e-07,2]
[392086040,1761141735894,159.0,9.7e-07,2]
[392086058,1761142028203,300.0,0.000137,2]
[392086413,1761142088549,300.0,0.000137,2]
[392086445,1761142232223,-300.69191476,0.00024125,2]
[392086756,1761142240391,-26.72478664,0.00024125,2]
[392086758,1761142240401,-500.0,0.00024151,2]
[392086760,1761142240411,-1391.48465104,0.0002427,2]
[392086762,1761142240420,-410.18725885,0.00024299,2]
[392086764,1761142240430,-300.0,0.00024299,2]
[392086766,1761142240440,-1200.0,0.000243,2]
[392086768,1761142240449,-300.0,0.000243,2]
[392086770,1761142240458,-214.63463283,0.000243,2]
[392086772,1761142240470,-85.36536717,0.000243,2]
[392086774,1761142240481,-300.0,0.000243,2]
[392086776,1761142240490,-44.06087595,0.000243,2]
[392086855,1761142244094,-1155.93912405,0.000243,2]
[392086857,1761142244104,-300.0,0.000243,2]
[392086859,1761142244113,-3560.73162587,0.00024306,2]
[392086861,1761142244125,-415.0,0.00024306,2]
[392086909,1761142244607,-12395.603633,0.00024306,2]
[392086911,1761142244618,-500.0,0.00024306,2]
[392086913,1761142244627,-500.0,0.00024306,2]
[392086915,1761142244636,-214.33360653,0.00024306,2]
[392086917,1761142244651,-500.0,0.00024306,2]
[392086919,1761142244660,-4961.39801934,0.00024307,2]
[392086922,1761142244676,-26372.635104,0.00024307,2]
[392086924,1761142244688,-3788.72206273,0.00024307,2]
[392086926,1761142244699,-681.11205145,0.00024307,2]
[392086928,1761142244711,-281.00478041,0.00024307,2]
[392086931,1761142244728,-401.2941972,0.00024307,2]
[392086933,1761142244739,-266.9869136,0.00024307,2]
[392086936,1761142244751,-291.300155,0.00024307,2]
[392086938,1761142244762,-3435.10545546,0.00024307,2]
[392086940,1761142244773,-39831.38741257,0.00024307,2]
[392087066,1761142249847,-106725.39320839,0.00024307,2]
[392087068,1761142432098,138.16994991,0.0002369,2]
[392087069,1761142432122,903.93802619,0.0002369,2]
[392087070,1761142456606,177.87,0.00014235,30]
[392087071,1761142457041,266.8,0.00015421,30]
[392087072,1761142457442,355.74,0.00016608,30]
[392087073,1761142457881,444.67,0.00017794,30]
[392087074,1761142458368,533.61,0.0001898,30]
[392087075,1761142458825,622.54,0.00020167,30]
[392087076,1761142459240,711.47,0.00021353,30]
[392087077,1761142459714,800.41,0.00022539,30]
[392087078,1761142460135,828.28355618,0.00023725,30]
[392087083,1761142535923,228.05,0.00014707,30]
[392087084,1761142536346,342.07,0.00015932,30]
[392087085,1761142536793,456.09,0.00017158,30]
[392087086,1761142537299,570.12,0.00018383,30]
[392087087,1761142537681,684.14,0.00019609,30]
[392087088,1761142538144,798.16,0.00020834,30]
[392087089,1761142538604,912.19,0.0002206,30]
[392087090,1761142539044,363.85841763,0.00023285,30]
[392087091,1761142539071,662.35158237,0.00023285,30]
[392087094,1761142583977,1019.45802219,0.0002389,2]
[392087112,1761142746955,8318.20039544,0.00023,2]
[392087113,1761142746978,10000.01,0.00023,2]
[392087115,1761142746999,10000.01,0.00023,2]
[392087116,1761142747021,10000.01,0.00023,2]
[392087117,1761142747047,10000.01,0.00023,2]
[392087118,1761142747069,10000.01,0.00023,2]
[392087119,1761142747091,10000.01,0.00023,2]
[392087120,1761142747115,10000.01,0.00023,2]
[392087121,1761142747138,10000.01,0.00023,2]
[392087123,1761142747162,10000.01,0.00023,2]
[392087124,1761142782464,-174.73764507,0.0002277,14]
[392087125,1761142785226,1346.01529695,0.00022542,14]
[392087126,1761142792891,1291.80034382,0.0002277,2]
[392087127,1761142797580,-15.26960456,0.00023,2]
[392087128,1761142808271,300.0,0.000228,2]
[392087129,1761142813805,196.0,0.0001515,2]
[392087130,1761142814347,196.0,0.0001522,2]
[392087131,1761142814553,196.0,0.0001529,2]
[392087132,1761142814828,196.0,0.00015361,2]
[392087133,1761142815114,196.0,0.00015431,2]
[392087134,1761142815416,196.0,0.00015501,2]
[392087135,1761142817631,196.0,0.00015571,2]
[392087136,1761142817914,196.0,0.00015642,2]
[392087137,1761142818214,196.0,0.00015712,2]
[392087138,1761142818529,196.0,0.00015782,2]
[392087139,1761142818850,196.0,0.00015852,2]
[392087140,1761142819318,196.0,0.00015923,2]
[392087141,1761142819504,300.0,0.000228,2]
[392087142,1761142819603,196.0,0.00015993,2]
[392087143,1761142819885,196.0,0.00016063,2]
[392087144,1761142820177,196.0,0.00016133,2]
[392087145,1761142820492,196.0,0.00016204,2]
[392087146,1761142820804,196.0,0.00016274,2]
[392087147,1761142821093,196.0,0.00016344,2]
[392087148,1761142821408,196.0,0.00016414,2]
[392087149,1761142821705,196.0,0.00016485,2]
[392087150,1761142821988,196.0,0.00016555,2]
[392087151,1761142822277,196.0,0.00016625,2]
[392087152,1761142822572,196.0,0.00016695,2]
[392087153,1761142822858,196.0,0.00016765,2]
[392087154,1761142823245,196.0,0.00016836,2]
[392087155,1761142823580,196.0,0.00016906,2]
[392087156,1761142824233,196.0,0.00016976,2]
[392087157,1761142824519,196.0,0.00017046,2]
[392087158,1761142824803,196.0,0.00017117,2]
[392087159,1761142825124,196.0,0.00017187,2]
[392087160,1761142825399,196.0,0.00017257,2]
[392087161,1761142825680,196.0,0.00017327,2]
[392087162,1761142826006,196.0,0.00017398,2]
[392087163,1761142826320,196.0,0.00017468,2]
[392087164,1761142826623,196.0,0.00017538,2]
[392087165,1761142826908,196.0,0.00017608,2]
[392087166,1761142827240,196.0,0.00017679,2]
[392087167,1761142827527,196.0,0.00017749,2]
[392087168,1761142827821,196.0,0.00017819,2]
[392087169,1761142829427,196.0,0.00017889,2]
[392087170,1761142829716,196.0,0.0001796,2]
[392087171,1761142830015,196.0,0.0001803,2]
[392087172,1761142830508,197.14317432,0.000181,2]
[392087173,1761142830879,300.0,0.000228,2]
[392087174,1761142841653,300.0,0.000228,2]
[392087178,1761142853125,300.0,0.000228,2]
[392087179,1761142865503,300.0,0.000228,2]
[392087180,1761142868727,300.0,0.000228,2]
[392087181,1761142876341,300.0,0.000228,2]
[392087182,1761142880293,300.0,0.000228,2]
[392087186,1761142933945,196.0,0.0001515,2]
[392087187,1761142935350,225.45715872,0.000181,2]
[392087195,1761142979179,666.0,0.00023198,2]
[392087196,1761142995187,5000.0,0.00023838,2]
[392087198,1761143009783,1027.40966696,0.00023838,2]
[392087199,1761143009806,2736.59033304,0.00023838,2]
[392087201,1761143018741,5000.0,0.00023838,2]
[392087202,1761143041758,2263.41966696,0.00023838,2]
[392087203,1761143041786,2736.58033304,0.00023838,2]
[392087204,1761143064758,5000.0,0.00023838,2]
[392087205,1761143088064,2263.42966696,0.00023838,2]
[392087206,1761143088094,2736.57033304,0.00023838,2]
[392087221,1761143111116,5000.0,0.00023838,2]
[392087223,1761143133859,2263.43966696,0.00023838,2]
[392087224,1761143133885,2736.56033304,0.00023838,2]
[392087225,1761143149459,206.43739216,0.00023838,2]
[392087226,1761143176327,4516.3991246,0.00023205,2]
[392087227,1761143193686,1533.02016748,0.00023838,2]
[392087250,1761143270358,1007.59298272,0.00018,2]
[392087251,1761143270384,10000.01,0.00018,2]
[392087252,1761143270409,10000.01,0.00018,2]
[392087253,1761143270438,10000.01,0.00018,2]
[392087254,1761143270464,10000.01,0.00018,2]
[392087255,1761143270490,10000.01,0.00018,2]
[392087256,1761143270515,5506.44435058,0.00018,2]
[392087264,1761143282377,701.9455738,0.00023838,2]
[392087265,1761143290979,5000.0,0.00023838,2]
[392087266,1761143292406,4298.0644262,0.00021,5]
[392087267,1761143292438,1213.09153144,0.00021,5]
[392087268,1761143294139,196.0,0.0001515,2]
[392087269,1761143294427,196.0,0.00015305,2]
[392087270,1761143294700,196.0,0.00015461,2]
[392087271,1761143294981,196.0,0.00015616,2]
[392087272,1761143295298,196.0,0.00015771,2]
[392087273,1761143295636,196.0,0.00015926,2]
[392087274,1761143295950,196.0,0.00016082,2]
[392087275,1761143296238,196.0,0.00016237,2]
[392087276,1761143296514,196.0,0.00016392,2]
[392087277,1761143296791,196.0,0.00016547,2]
[392087278,1761143297078,196.0,0.00016703,2]
[392087279,1761143297357,196.0,0.00016858,2]
[392087280,1761143297636,196.0,0.00017013,2]
[392087281,1761143297912,196.0,0.00017168,2]
[392087282,1761143298213,196.0,0.00017324,2]
[392087283,1761143298487,196.0,0.00017479,2]
[392087284,1761143298787,196.0,0.00017634,2]
[392087285,1761143299062,196.0,0.00017789,2]
[392087286,1761143299310,5000.0,0.00023838,2]
[392087287,1761143299344,196.0,0.00017945,2]
[392087288,1761143299629,62.91846856,0.000181,2]
[392087289,1761143299655,318.39475262,0.000181,2]
[392087290,1761143307925,5000.0,0.00023838,2]
[392087291,1761143314209,4655.96414969,0.00022,5]
[392087292,1761143315444,25.65109769,0.00018,5]
[392087293,1761143315468,535.16160286,0.00018,5]
[392087294,1761143315918,306.23034307,0.0002383,2]
[392087295,1761143316708,5000.0,0.00023838,2]
[392087296,1761143323216,886.89345988,0.0002,2]
[392087297,1761143324600,3271.72459419,0.00023838,2]
[392087298,1761143324628,1728.27540581,0.00023838,2]
[392087299,1761143332826,3254.56367467,0.00023838,2]
[392087301,1761143340709,5000.0,0.00023838,2]
[392087302,1761143348935,17.17091952,0.00023838,2]
[392087303,1761143348960,4982.82908048,0.00023838,2]
[392087308,1761143351024,300.0,0.000238,2]
[392087309,1761143356727,284.12116383,0.00023838,2]
[392087312,1761143360995,367004.1916,0.00035584,30]
[392087313,1761143361427,300.0,0.000238,2]
[392087314,1761143365062,5000.0,0.00023838,2]
[392087315,1761143372923,300.0,0.000238,2]
[392087316,1761143373192,4115.88883617,0.00023838,2]
[392087317,1761143373217,884.11116383,0.00023838,2]
[392087318,1761143381840,1078.49709297,0.00023838,2]
[392087319,1761143389764,5000.0,0.00023838,2]
[392087320,1761143399209,3037.4017432,0.00023838,2]
[392087321,1761143399234,1962.5982568,0.00023838,2]
[392087322,1761143407827,300.0,0.000238,2]
[392087323,1761143414591,205.26566106,0.0001515,2]
[392087324,1761143414663,5000.0,0.00023838,2]
[392087325,1761143418779,300.0,0.000238,2]
[392087326,1761143423175,2232.14608214,0.00023838,2]
[392087327,1761143423200,2767.85391786,0.00023838,2]
[392087328,1761143430911,300.0,0.000238,2]
[392087364,1761143432432,-416.25749935,0.0002399,2]
[392087425,1761143438364,-153.34390649,0.0002399,2]
[392087426,1761143438375,-1941.86916794,0.00024053,2]
[392087427,1761143438386,-1560.07575704,0.00024142,2]
[392087428,1761143438398,-1200.0,0.00024196,2]
[392087429,1761143438410,-206.66,0.00024197,3]
[392087430,1761143438423,-619.98,0.00024197,3]
[392087431,1761143438437,-413.32,0.00024197,3]
[392087432,1761143438450,-695.6,0.00024197,10]
[392087433,1761143438460,-300.0,0.00024204,2]
[392087434,1761143438475,-300.0,0.00024204,2]
[392087435,1761143438488,-300.0,0.00024204,2]
[392087436,1761143438500,-300.0,0.00024204,2]
[392087437,1761143438512,-300.0,0.00024204,2]
[392087438,1761143438523,-1200.0,0.00024205,2]
[392087439,1761143438534,-500.0,0.00024206,2]
[392087440,1761143438545,-636.82796602,0.00024206,2]
[392087441,1761143438560,-190.48151184,0.00024206,2]
[392087442,1761143438572,-550.71968396,0.00024206,2]
[392087443,1761143438584,-500.0,0.00024206,2]
[392087444,1761143438597,-306.0232348,0.00024206,2]
[392087445,1761143438611,-216.33329766,0.00024206,2]
[392087446,1761143438623,-500.0,0.00024206,2]
[392087447,1761143438636,-348.90612388,0.00024206,2]
[392087448,1761143438648,-159.68454457,0.00024206,2]
[392087449,1761143438660,-180.84680406,0.00024206,2]
[392087450,1761143438672,-500.0,0.00024206,2]
[392087451,1761143438683,-500.0,0.00024206,2]
[392087452,1761143438696,-500.0,0.00024206,2]
[392087453,1761143438708,-454.87908793,0.00024206,2]
[392087454,1761143438719,-377.2342183,0.00024206,2]
[392087455,1761143438732,-500.0,0.00024206,2]
[392087456,1761143438744,-500.0,0.00024206,2]
[392087457,1761143438756,-500.0,0.00024206,2]
[392087458,1761143438767,-500.0,0.00024206,2]
[392087459,1761143438780,-500.0,0.00024206,2]
[392087460,1761143438792,-500.0,0.00024206,2]
[392087461,1761143438805,-320.05212529,0.00024206,2]
[392087462,1761143438817,-500.0,0.00024206,2]
[392087463,1761143438829,-500.0,0.00024206,2]
[392087464,1761143438841,-500.0,0.00024206,2]
[392087465,1761143438853,-500.0,0.00024206,2]
[392087466,1761143438865,-500.0,0.00024206,2]
[392087467,1761143438876,-630.57444954,0.00024206,2]
[392087468,1761143438887,-194.33230089,0.00024206,2]
[392087469,1761143438899,-500.0,0.00024206,2]
[392087470,1761143438911,-500.0,0.00024206,2]
[392087471,1761143438923,-500.0,0.00024206,2]
[392087472,1761143438935,-282.40179947,0.00024206,2]
[392087473,1761143438946,-2490.64212792,0.00024207,2]
[392087474,1761143439847,5000.0,0.00023838,2]
[392087607,1761143442410,300.0,0.000238,2]
[392087733,1761143448525,1632.15608214,0.00023838,2]
[392087734,1761143448549,3367.84391786,0.00023838,2]
[392087735,1761143454793,300.0,0.000238,2]
[392087736,1761143456073,4113.87231558,0.00023838,2]
[392087737,1761143464664,2218.29376656,0.00023838,2]
[392087738,1761143464689,2781.70623344,0.00023838,2]
[392087739,1761143466261,300.0,0.000238,2]
[392087740,1761143473075,5000.0,0.00023838,2]
[392087741,1761143480902,886.12768442,0.00023838,2]
[392087742,1761143489648,1032.17608214,0.00023838,2]
[392087743,1761143489674,3967.82391786,0.00023838,2]
[392087744,1761143497559,5000.0,0.00023838,2]
[392087745,1761143499495,1803.3,0.00030137,120]
[392087746,1761143508008,364378.14900232,0.00035588,30]
[392087747,1761143513542,672.96353475,0.00023838,2]
[392087748,1761143521517,359.22254739,0.00023838,2]
[392087749,1761143521541,4640.77745261,0.00023838,2]
[392087751,1761143527210,743.458005,0.00013699,2]
[392087752,1761143527441,743.458005,0.00020187,2]
[392087753,1761143533520,196.0,0.0001515,2]
[392087754,1761143533851,196.0,0.00015314,2]
[392087755,1761143534124,196.0,0.00015478,2]
[392087756,1761143534420,196.0,0.00015642,2]
[392087757,1761143534703,196.0,0.00015806,2]
[392087758,1761143535114,196.0,0.00015969,2]
[392087759,1761143535287,196.0,0.00016133,2]
[392087760,1761143535565,196.0,0.00016297,2]
[392087761,1761143535876,196.0,0.00016461,2]
[392087762,1761143536154,196.0,0.00016625,2]
[392087763,1761143536431,196.0,0.00016789,2]
[392087764,1761143536717,196.0,0.00016953,2]
[392087765,1761143536945,1520.31653739,0.00023838,2]
[392087766,1761143536973,5884.68346261,0.00023838,2]
[392087767,1761143537008,196.0,0.00017117,2]
[392087768,1761143537279,196.0,0.00017281,2]
[392087769,1761143537563,196.0,0.00017444,2]
[392087770,1761143537856,196.0,0.00017608,2]
[392087771,1761143538261,196.0,0.00017772,2]
[392087772,1761143538538,196.0,0.00017936,2]
[392087773,1761143538820,203.34637604,0.000181,2]
[392087774,1761143544418,2735.98016135,0.00023838,2]
[392087775,1761143544440,2264.01983865,0.00023838,2]
[392087776,1761143566892,5000.0,0.00023838,2]
[392087777,1761143589216,300.0,0.000238,2]
[392087778,1761143589764,2435.99016135,0.00023838,2]
[392087779,1761143589787,2564.00983865,0.00023838,2]
[392087780,1761143600342,300.0,0.000238,2]
[392087782,1761143624278,5336.13223668,0.00030136,120]
[392087784,1761143769906,176.0,0.00024,120]
[392087786,1761143850098,2326.32966201,0.00022588,2]
[392087787,1761143861459,2773.51353059,0.00023838,2]
[392087788,1761143869368,832.77659205,0.00023838,2]
[392087792,1761143892082,4167.22340795,0.00023838,2]
[392087794,1761144208526,423.2178994,0.00023108,30]
[392087795,1761144263700,-5000.0,0.00023781,14]
[392087796,1761144286042,0.01,0.00023781,2]
[392087797,1761144286067,4999.99,0.00023781,2]
[392087799,1761144317068,393.5,0.00030137,120]
[392087800,1761144328629,250.0,0.00023768,2]
[392087801,1761144396442,1000.0,0.00035541,120]
[392087802,1761144397524,1000.0,0.00035541,120]
[392087803,1761144398057,1000.0,0.00035541,120]
[392087804,1761144398753,1000.0,0.00035541,120]
[392087805,1761144399254,1000.0,0.00035541,120]
[392087806,1761144399793,1000.0,0.00035541,120]
[392087807,1761144405003,233.89,0.00035541,120]
[392087810,1761144443814,283.8396089,0.00023722,2]
[392087811,1761144482549,2765.756611,0.00023086,2]
[392087812,1761144482991,160.0,0.000301,120]
[392087813,1761144491103,160.0,0.000301,120]
[392087814,1761144592391,160.0,0.000238,2]
[392087815,1761144593135,160.0,0.000238,2]
[392087816,1761144593685,160.0,0.000238,2]
[392087875,1761144632557,-160.0,0.00024016,2]
[392087877,1761144632567,-300.0,0.00024018,2]
[392087880,1761144632578,-209.62520001,0.00024019,2]
[392087891,1761144632690,-703.37479999,0.00024019,2]
[392087894,1761144632700,-300.0,0.00024019,2]
[392087896,1761144632710,-300.0,0.00024019,2]
[392087897,1761144632719,-300.0,0.00024019,2]
[392087899,1761144632728,-300.0,0.00024019,2]
[392087901,1761144632738,-1200.0,0.00024019,2]
[392087903,1761144632748,-158.99412737,0.0002402,2]
[392087905,1761144632757,-1374.88457337,0.00024097,2]